[Event "Titled Tuesday Blitz June 6 Late 2023"]
[White "mohsengabr2002"]
[Black "Camilla_Lee"]
[WhiteElo "2254"]
[BlackElo "2492"]
[Result "1/2-1/2"]
[Round "2"]
[TimeControl "180+2"]
[Date "2023.06.07"]
[WhiteClock "0:01:21"]
[BlackClock "0:00:05"]
[Board "152"]

1. e4 {[%clk 0:02:59]}  e5 {[%clk 0:02:59]} 2. Nc3 {[%clk 0:02:58]}  Nf6 {[%clk 0:02:59]} 3. g3 {[%clk 0:02:57]}  Nc6 {[%clk 0:02:59]} 4. Bg2 {[%clk 0:02:57]}  g6 {[%clk 0:02:59]} 5. Nf3 {[%clk 0:02:56]}  Bg7 {[%clk 0:02:59]} 6. O-O {[%clk 0:02:55]}  O-O {[%clk 0:02:59]} 7. d3 {[%clk 0:02:55]}  d6 {[%clk 0:02:55]} 8. h3 {[%clk 0:02:50]}  h6 {[%clk 0:02:53]} 9. Be3 {[%clk 0:02:50]}  Be6 {[%clk 0:02:53]} 10. d4 {[%clk 0:02:50]}  exd4 {[%clk 0:02:49]} 11. Nxd4 {[%clk 0:02:49]}  Ne5 {[%clk 0:02:41]} 12. Nxe6 {[%clk 0:02:40]}  fxe6 {[%clk 0:02:42]} 13. Qe2 {[%clk 0:02:39]}  a6 {[%clk 0:02:40]} 14. f4 {[%clk 0:02:38]}  Ned7 {[%clk 0:02:41]} 15. e5 {[%clk 0:02:33]}  dxe5 {[%clk 0:02:38]} 16. fxe5 {[%clk 0:02:33]}  Nxe5 {[%clk 0:02:37]} 17. Bc5 {[%clk 0:02:32]}  Re8 {[%clk 0:02:09]} 18. Qxe5 {[%clk 0:02:29]}  Nd7 {[%clk 0:02:09]} 19. Qe3 {[%clk 0:02:25]}  Nxc5 {[%clk 0:02:09]} 20. Rad1 {[%clk 0:02:23]}  Qg5 {[%clk 0:02:07]} 21. Qxg5 {[%clk 0:02:06]}  hxg5 {[%clk 0:02:08]} 22. Ne4 {[%clk 0:02:02]}  Nxe4 {[%clk 0:02:00]} 23. Bxe4 {[%clk 0:02:02]}  Bxb2 {[%clk 0:02:00]} 24. Bxb7 {[%clk 0:01:59]}  Ra7 {[%clk 0:01:37]} 25. Be4 {[%clk 0:01:59]}  c5 {[%clk 0:01:30]} 26. Bxg6 {[%clk 0:01:56]}  Rb8 {[%clk 0:01:30]} 27. Rd6 {[%clk 0:01:52]}  Bd4+ {[%clk 0:01:29]} 28. Kg2 {[%clk 0:01:52]}  e5 {[%clk 0:01:23]} 29. Bd3 {[%clk 0:01:48]}  Rf8 {[%clk 0:01:16]} 30. Rxf8+ {[%clk 0:01:30]}  Kxf8 {[%clk 0:01:16]} 31. Bxa6 {[%clk 0:01:29]}  Rf7 {[%clk 0:01:15]} 32. Bd3 {[%clk 0:01:18]}  Rf2+ {[%clk 0:01:14]} 33. Kh1 {[%clk 0:01:18]}  c4 {[%clk 0:01:12]} 34. Bxc4 {[%clk 0:01:18]}  Rxc2 {[%clk 0:01:12]} 35. Bb3 {[%clk 0:01:18]}  Rd2 {[%clk 0:00:57]} 36. Re6 {[%clk 0:01:11]}  Re2 {[%clk 0:00:52]} 37. Rf6+ {[%clk 0:01:08]}  Ke7 {[%clk 0:00:50]} 38. Rf5 {[%clk 0:01:09]}  e4 {[%clk 0:00:47]} 39. Rxg5 {[%clk 0:01:09]}  e3 {[%clk 0:00:36]} 40. Rg6 {[%clk 0:01:08]}  Kd7 {[%clk 0:00:24]} 41. Re6 {[%clk 0:00:58]}  Rb2 {[%clk 0:00:24]} 42. Re4 {[%clk 0:00:57]}  Bc5 {[%clk 0:00:21]} 43. Bc4 {[%clk 0:00:55]}  Kd6 {[%clk 0:00:20]} 44. h4 {[%clk 0:00:55]}  Rc2 {[%clk 0:00:17]} 45. h5 {[%clk 0:00:53]}  Rb2 {[%clk 0:00:16]} 46. h6 {[%clk 0:00:52]}  Rb7 {[%clk 0:00:17]} 47. g4 {[%clk 0:00:51]}  Kc6 {[%clk 0:00:12]} 48. g5 {[%clk 0:00:51]}  Rb1+ {[%clk 0:00:08]} 49. Kg2 {[%clk 0:00:51]}  Rb2+ {[%clk 0:00:08]} 50. Kh3 {[%clk 0:00:50]}  Bd6 {[%clk 0:00:08]} 51. Kg4 {[%clk 0:00:50]}  Rg2+ {[%clk 0:00:07]} 52. Kf5 {[%clk 0:00:50]}  Rf2+ {[%clk 0:00:08]} 53. Kg6 {[%clk 0:00:50]}  Rg2 {[%clk 0:00:08]} 54. Rxe3 {[%clk 0:00:49]}  Bf4 {[%clk 0:00:07]} 55. Re6+ {[%clk 0:00:48]}  Kc5 {[%clk 0:00:07]} 56. h7 {[%clk 0:00:49]}  Rxg5+ {[%clk 0:00:05]} 57. Kf7 {[%clk 0:00:49]}  Rh5 {[%clk 0:00:04]} 58. Kg7 {[%clk 0:00:49]}  Kxc4 {[%clk 0:00:05]} 59. h8=Q {[%clk 0:00:47]}  Rxh8 {[%clk 0:00:05]} 60. Kxh8 {[%clk 0:00:48]}  Kb5 {[%clk 0:00:04]} 61. Kg7 {[%clk 0:00:48]}  Bd2 {[%clk 0:00:04]} 62. Kg6 {[%clk 0:00:49]}  Kb4 {[%clk 0:00:05]} 63. Kf5 {[%clk 0:00:50]}  Ka3 {[%clk 0:00:04]} 64. Ra6+ {[%clk 0:00:50]}  Kb4 {[%clk 0:00:05]} 65. Ke4 {[%clk 0:00:51]}  Be1 {[%clk 0:00:03]} 66. Ra8 {[%clk 0:00:52]}  Kb5 {[%clk 0:00:03]} 67. Kd3 {[%clk 0:00:53]}  Kb6 {[%clk 0:00:03]} 68. Kc2 {[%clk 0:00:54]}  Kb7 {[%clk 0:00:04]} 69. Re8 {[%clk 0:00:54]}  Bg3 {[%clk 0:00:03]} 70. Re4 {[%clk 0:00:55]}  Ka6 {[%clk 0:00:04]} 71. Kb3 {[%clk 0:00:56]}  Kb6 {[%clk 0:00:04]} 72. a4 {[%clk 0:00:57]}  Ka6 {[%clk 0:00:05]} 73. Re6+ {[%clk 0:00:57]}  Ka5 {[%clk 0:00:05]} 74. Rg6 {[%clk 0:00:58]}  Be1 {[%clk 0:00:05]} 75. Rg5+ {[%clk 0:00:59]}  Ka6 {[%clk 0:00:05]} 76. Kc4 {[%clk 0:01:00]}  Kb6 {[%clk 0:00:05]} 77. Rb5+ {[%clk 0:01:00]}  Ka6 {[%clk 0:00:06]} 78. Rb1 {[%clk 0:01:01]}  Bd2 {[%clk 0:00:06]} 79. Rb2 {[%clk 0:01:01]}  Be1 {[%clk 0:00:07]} 80. Re2 {[%clk 0:01:01]}  Bg3 {[%clk 0:00:04]} 81. Re6+ {[%clk 0:01:01]}  Ka5 {[%clk 0:00:04]} 82. Rg6 {[%clk 0:01:02]}  Bf2 {[%clk 0:00:04]} 83. Kb3 {[%clk 0:01:03]}  Be1 {[%clk 0:00:04]} 84. Rg4 {[%clk 0:01:04]}  Bd2 {[%clk 0:00:04]} 85. Re4 {[%clk 0:01:05]}  Ka6 {[%clk 0:00:04]} 86. Re5 {[%clk 0:01:05]}  Bf4 {[%clk 0:00:03]} 87. Rb5 {[%clk 0:01:06]}  Bd2 {[%clk 0:00:04]} 88. Kc4 {[%clk 0:01:07]}  Be1 {[%clk 0:00:04]} 89. Kd5 {[%clk 0:01:08]}  Bd2 {[%clk 0:00:04]} 90. Kc6 {[%clk 0:01:09]}  Be1 {[%clk 0:00:04]} 91. Re5 {[%clk 0:01:09]}  Bd2 {[%clk 0:00:05]} 92. Rd5 {[%clk 0:01:09]}  Be1 {[%clk 0:00:05]} 93. Kc5 {[%clk 0:01:10]}  Ka5 {[%clk 0:00:05]} 94. Kc4+ {[%clk 0:01:11]}  Ka6 {[%clk 0:00:04]} 95. Re5 {[%clk 0:01:11]}  Bd2 {[%clk 0:00:04]} 96. Re6+ {[%clk 0:01:12]}  Ka5 {[%clk 0:00:04]} 97. Rd6 {[%clk 0:01:13]}  Be1 {[%clk 0:00:04]} 98. Rd8 {[%clk 0:01:14]}  Ka6 {[%clk 0:00:03]} 99. Re8 {[%clk 0:01:14]}  Bd2 {[%clk 0:00:02]} 100. Ra8+ {[%clk 0:01:15]}  Kb6 {[%clk 0:00:03]} 101. Rg8 {[%clk 0:01:15]}  Be1 {[%clk 0:00:03]} 102. Rg5 {[%clk 0:01:15]}  Ka6 {[%clk 0:00:03]} 103. Re5 {[%clk 0:01:16]}  Bd2 {[%clk 0:00:04]} 104. Rd5 {[%clk 0:01:17]}  Be1 {[%clk 0:00:04]} 105. Rd6+ {[%clk 0:01:17]}  Ka5 {[%clk 0:00:04]} 106. Rd8 {[%clk 0:01:17]}  Bf2 {[%clk 0:00:04]} 107. Ra8+ {[%clk 0:01:18]}  Kb6 {[%clk 0:00:05]} 108. Kb4 {[%clk 0:01:18]}  Be1+ {[%clk 0:00:05]} 109. Ka3 {[%clk 0:01:19]}  Bd2 {[%clk 0:00:05]} 110. Kb3 {[%clk 0:01:19]}  Be1 {[%clk 0:00:06]} 111. Re8 {[%clk 0:01:19]}  Bd2 {[%clk 0:00:06]} 112. Rd8 {[%clk 0:01:20]}  Be1 {[%clk 0:00:06]} 113. Rd3 {[%clk 0:01:21]}  Ka6 {[%clk 0:00:06]} 114. Rd1 {[%clk 0:01:21]}  Bf2 {[%clk 0:00:06]} 115. Kc4 {[%clk 0:01:20]}  Ka5 {[%clk 0:00:06]} 116. Rd5+ {[%clk 0:01:21]}  Ka6 {[%clk 0:00:05]} 117. Rb5 {[%clk 0:01:21]}  Be1 {[%clk 0:00:05]} 1/2-1/2


[Site "https://www.chess.com"]

[Event "Titled Tuesday Blitz June 6 Late 2023"]
[White "Bruedigam, Martin"]
[Black "Harish, Neeraj"]
[WhiteFideId "24608033"]
[BlackFideId "30958130"]
[WhiteElo "2331"]
[BlackElo "1879"]
[Result "0-1"]
[Round "2"]
[TimeControl "180+2"]
[Date "2023.06.07"]
[WhiteClock "0:00:30"]
[BlackClock "0:00:21"]
[Board "153"]

1. d4 {[%clk 0:03:00]}  d5 {[%clk 0:02:55]} 2. c4 {[%clk 0:03:01]}  e6 {[%clk 0:02:55]} 3. Nc3 {[%clk 0:03:01]}  Nf6 {[%clk 0:02:56]} 4. cxd5 {[%clk 0:03:01]}  exd5 {[%clk 0:02:56]} 5. Bg5 {[%clk 0:03:02]}  Be7 {[%clk 0:02:56]} 6. e3 {[%clk 0:03:02]}  h6 {[%clk 0:02:56]} 7. Bh4 {[%clk 0:03:01]}  O-O {[%clk 0:02:55]} 8. Bd3 {[%clk 0:03:01]}  c6 {[%clk 0:02:54]} 9. h3 {[%clk 0:03:01]}  Ne8 {[%clk 0:02:52]} 10. Bg3 {[%clk 0:02:52]}  Nd6 {[%clk 0:02:52]} 11. Qc2 {[%clk 0:02:50]}  Re8 {[%clk 0:02:51]} 12. Nge2 {[%clk 0:02:49]}  Bf8 {[%clk 0:02:51]} 13. O-O {[%clk 0:02:47]}  a5 {[%clk 0:02:49]} 14. Rae1 {[%clk 0:02:44]}  Na6 {[%clk 0:02:48]} 15. a3 {[%clk 0:02:44]}  Bd7 {[%clk 0:02:48]} 16. e4 {[%clk 0:02:19]}  dxe4 {[%clk 0:02:31]} 17. Nxe4 {[%clk 0:02:19]}  Nxe4 {[%clk 0:02:27]} 18. Bxe4 {[%clk 0:02:20]}  Nc7 {[%clk 0:02:24]} 19. Nc3 {[%clk 0:02:06]}  Be6 {[%clk 0:02:20]} 20. Rd1 {[%clk 0:01:57]}  Nd5 {[%clk 0:02:05]} 21. Na4 {[%clk 0:01:52]}  Bd6 {[%clk 0:02:00]} 22. Bxd6 {[%clk 0:01:48]}  Qxd6 {[%clk 0:02:01]} 23. Nc5 {[%clk 0:01:48]}  b6 {[%clk 0:01:43]} 24. Na4 {[%clk 0:01:47]}  b5 {[%clk 0:01:18]} 25. Nc5 {[%clk 0:01:44]}  Nb6 {[%clk 0:01:19]} 26. Nb7 {[%clk 0:01:35]}  Qc7 {[%clk 0:01:02]} 27. Qxc6 {[%clk 0:01:31]}  Rec8 {[%clk 0:00:52]} 28. Qxc7 {[%clk 0:01:28]}  Rxc7 {[%clk 0:00:53]} 29. Nd6 {[%clk 0:01:24]}  b4 {[%clk 0:00:49]} 30. Bxa8 {[%clk 0:01:23]}  Nxa8 {[%clk 0:00:47]} 31. axb4 {[%clk 0:01:21]}  axb4 {[%clk 0:00:47]} 32. Rc1 {[%clk 0:01:16]}  Ra7 {[%clk 0:00:41]} 33. Rc6 {[%clk 0:01:02]}  Ra2 {[%clk 0:00:36]} 34. Rfc1 {[%clk 0:00:40]}  Rxb2 {[%clk 0:00:33]} 35. Ra6 {[%clk 0:00:40]}  b3 {[%clk 0:00:25]} 36. Rxa8+ {[%clk 0:00:39]}  Kh7 {[%clk 0:00:26]} 37. Rb8 {[%clk 0:00:36]}  Rc2 {[%clk 0:00:22]} 38. Rxc2 {[%clk 0:00:35]}  bxc2 {[%clk 0:00:22]} 39. Ne4 {[%clk 0:00:30]}  c1=Q+ {[%clk 0:00:21]} 0-1


[Site "https://www.chess.com"]

[Event "Titled Tuesday Blitz June 6 Late 2023"]
[White "Eggleston, Thomas A"]
[Black "Della Morte, German"]
[WhiteFideId "412139"]
[BlackFideId "113522"]
[WhiteElo "2155"]
[BlackElo "2306"]
[Result "0-1"]
[Round "2"]
[TimeControl "180+2"]
[Date "2023.06.07"]
[WhiteClock "0:01:16"]
[BlackClock "0:02:16"]
[Board "155"]

1. e4 {[%clk 0:03:00]}  c6 {[%clk 0:02:59]} 2. Nc3 {[%clk 0:02:59]}  d5 {[%clk 0:03:00]} 3. Nf3 {[%clk 0:02:59]}  dxe4 {[%clk 0:03:00]} 4. Nxe4 {[%clk 0:03:00]}  Nf6 {[%clk 0:03:01]} 5. Nxf6+ {[%clk 0:03:00]}  exf6 {[%clk 0:03:02]} 6. d4 {[%clk 0:03:01]}  Bd6 {[%clk 0:03:02]} 7. Bc4 {[%clk 0:03:01]}  O-O {[%clk 0:03:03]} 8. O-O {[%clk 0:02:59]}  Bg4 {[%clk 0:03:03]} 9. h3 {[%clk 0:03:00]}  Bh5 {[%clk 0:03:03]} 10. Re1 {[%clk 0:02:56]}  Nd7 {[%clk 0:03:03]} 11. Bb3 {[%clk 0:02:55]}  Bc7 {[%clk 0:03:03]} 12. c4 {[%clk 0:02:55]}  Re8 {[%clk 0:03:04]} 13. Be3 {[%clk 0:02:54]}  Nf8 {[%clk 0:03:04]} 14. g4 {[%clk 0:02:50]}  Bg6 {[%clk 0:03:04]} 15. c5 {[%clk 0:02:42]}  Ne6 {[%clk 0:02:57]} 16. Qd2 {[%clk 0:02:41]}  Be4 {[%clk 0:02:55]} 17. Nh4 {[%clk 0:02:38]}  Bd5 {[%clk 0:02:48]} 18. Bc2 {[%clk 0:02:32]}  g6 {[%clk 0:02:47]} 19. Rad1 {[%clk 0:02:24]}  f5 {[%clk 0:02:47]} 20. gxf5 {[%clk 0:02:22]}  Qxh4 {[%clk 0:02:45]} 21. fxe6 {[%clk 0:02:22]}  Qxh3 {[%clk 0:02:44]} 22. exf7+ {[%clk 0:02:18]}  Kxf7 {[%clk 0:02:41]} 23. f3 {[%clk 0:02:14]}  Bxf3 {[%clk 0:02:40]} 24. Bb3+ {[%clk 0:01:59]}  Kg7 {[%clk 0:02:39]} 25. Bf4 {[%clk 0:01:47]}  Qh1+ {[%clk 0:02:15]} 26. Kf2 {[%clk 0:01:16]}  Qg2# {[%clk 0:02:16]} 0-1


[Site "https://www.chess.com"]

[Event "Titled Tuesday Blitz June 6 Late 2023"]
[White "ArchibaldCerveza29"]
[Black "Jaivardhan Raj"]
[BlackFideId "25744437"]
[WhiteElo "2483"]
[BlackElo "1772"]
[Result "1-0"]
[Round "2"]
[TimeControl "180+2"]
[Date "2023.06.07"]
[WhiteClock "0:00:51"]
[BlackClock "0:00:08"]
[Board "160"]

1. e4 {[%clk 0:03:00]}  c5 {[%clk 0:02:59]} 2. c3 {[%clk 0:03:00]}  Nf6 {[%clk 0:02:55]} 3. e5 {[%clk 0:03:00]}  Nd5 {[%clk 0:02:56]} 4. d4 {[%clk 0:03:01]}  cxd4 {[%clk 0:02:56]} 5. Nf3 {[%clk 0:03:01]}  Nc6 {[%clk 0:02:54]} 6. Bc4 {[%clk 0:02:57]}  Nb6 {[%clk 0:02:54]} 7. Bb3 {[%clk 0:02:56]}  g6 {[%clk 0:02:53]} 8. cxd4 {[%clk 0:02:41]}  Bg7 {[%clk 0:02:50]} 9. Nc3 {[%clk 0:02:42]}  O-O {[%clk 0:02:46]} 10. O-O {[%clk 0:02:28]}  d6 {[%clk 0:02:37]} 11. Qe2 {[%clk 0:02:27]}  Bg4 {[%clk 0:02:09]} 12. Rd1 {[%clk 0:02:14]}  Bxf3 {[%clk 0:01:54]} 13. Qxf3 {[%clk 0:02:12]}  dxe5 {[%clk 0:01:50]} 14. dxe5 {[%clk 0:02:13]}  Qc8 {[%clk 0:01:21]} 15. e6 {[%clk 0:02:10]}  fxe6 {[%clk 0:01:11]} 16. Qe4 {[%clk 0:02:06]}  Nd8 {[%clk 0:00:59]} 17. Bg5 {[%clk 0:02:00]}  Qc5 {[%clk 0:00:51]} 18. Be3 {[%clk 0:01:54]}  Qf5 {[%clk 0:00:46]} 19. Qxf5 {[%clk 0:01:51]}  gxf5 {[%clk 0:00:47]} 20. Bxb6 {[%clk 0:01:43]}  axb6 {[%clk 0:00:47]} 21. Rd7 {[%clk 0:01:44]}  Bxc3 {[%clk 0:00:42]} 22. bxc3 {[%clk 0:01:43]}  Kf7 {[%clk 0:00:42]} 23. Rad1 {[%clk 0:01:36]}  Kf6 {[%clk 0:00:30]} 24. Rc7 {[%clk 0:01:31]}  Rb8 {[%clk 0:00:29]} 25. Rdd7 {[%clk 0:01:29]}  Nc6 {[%clk 0:00:27]} 26. Kf1 {[%clk 0:01:15]}  Rbd8 {[%clk 0:00:16]} 27. Rxb7 {[%clk 0:01:11]}  Rxd7 {[%clk 0:00:15]} 28. Rxd7 {[%clk 0:01:12]}  Ra8 {[%clk 0:00:15]} 29. Rb7 {[%clk 0:01:10]}  Na5 {[%clk 0:00:15]} 30. Rxb6 {[%clk 0:01:10]}  Nxb3 {[%clk 0:00:16]} 31. axb3 {[%clk 0:01:10]}  Ra1+ {[%clk 0:00:16]} 32. Ke2 {[%clk 0:01:11]}  Ra2+ {[%clk 0:00:17]} 33. Kf3 {[%clk 0:01:11]}  Ke5 {[%clk 0:00:17]} 34. b4 {[%clk 0:01:10]}  Kd5 {[%clk 0:00:17]} 35. Rb7 {[%clk 0:01:09]}  e5 {[%clk 0:00:17]} 36. Rxe7 {[%clk 0:01:08]}  e4+ {[%clk 0:00:18]} 37. Kg3 {[%clk 0:01:09]}  Rc2 {[%clk 0:00:19]} 38. Rc7 {[%clk 0:01:07]}  Ke5 {[%clk 0:00:19]} 39. Rc5+ {[%clk 0:01:06]}  Kf6 {[%clk 0:00:19]} 40. b5 {[%clk 0:01:06]}  Kg5 {[%clk 0:00:18]} 41. h4+ {[%clk 0:01:06]}  Kf6 {[%clk 0:00:18]} 42. c4 {[%clk 0:01:02]}  h5 {[%clk 0:00:16]} 43. b6 {[%clk 0:01:00]}  Rb2 {[%clk 0:00:15]} 44. Rb5 {[%clk 0:00:55]}  Rc2 {[%clk 0:00:13]} 45. b7 {[%clk 0:00:54]}  Rc3+ {[%clk 0:00:13]} 46. Kf4 {[%clk 0:00:53]}  Rc2 {[%clk 0:00:08]} 47. Rb6+ {[%clk 0:00:51]}  Ke7 {[%clk 0:00:07]} 48. b8=Q {[%clk 0:00:52]}  Rxf2+ {[%clk 0:00:07]} 49. Ke5 {[%clk 0:00:52]}  Rxg2 {[%clk 0:00:08]} 50. Re6+ {[%clk 0:00:51]} 1-0


[Site "https://www.chess.com"]

[Event "Titled Tuesday Blitz June 6 Late 2023"]
[White "KSho99"]
[Black "Hristodoulou, Panagiotis"]
[BlackFideId "4214340"]
[WhiteElo "2193"]
[BlackElo "2272"]
[Result "0-1"]
[Round "2"]
[TimeControl "180+2"]
[Date "2023.06.07"]
[WhiteClock "0:00:01"]
[BlackClock "0:01:21"]
[Board "161"]

1. Nf3 {[%clk 0:03:00]}  Nf6 {[%clk 0:03:00]} 2. b3 {[%clk 0:03:00]}  d5 {[%clk 0:03:00]} 3. e3 {[%clk 0:02:58]}  c6 {[%clk 0:03:00]} 4. Bb2 {[%clk 0:02:58]}  Bg4 {[%clk 0:03:01]} 5. h3 {[%clk 0:02:58]}  Bh5 {[%clk 0:03:01]} 6. g4 {[%clk 0:02:57]}  Bg6 {[%clk 0:03:01]} 7. Ne5 {[%clk 0:02:58]}  Nbd7 {[%clk 0:03:01]} 8. Nxg6 {[%clk 0:02:56]}  hxg6 {[%clk 0:03:01]} 9. Bg2 {[%clk 0:02:54]}  e5 {[%clk 0:02:59]} 10. d3 {[%clk 0:02:52]}  a5 {[%clk 0:02:57]} 11. a4 {[%clk 0:02:36]}  Bb4+ {[%clk 0:02:57]} 12. Nd2 {[%clk 0:02:36]}  Qe7 {[%clk 0:02:57]} 13. Qe2 {[%clk 0:02:35]}  Qc5 {[%clk 0:02:53]} 14. c4 {[%clk 0:02:21]}  O-O {[%clk 0:02:32]} 15. Rc1 {[%clk 0:02:09]}  d4 {[%clk 0:02:31]} 16. O-O {[%clk 0:01:32]}  Rfe8 {[%clk 0:02:23]} 17. e4 {[%clk 0:01:15]}  Nf8 {[%clk 0:02:22]} 18. Rc2 {[%clk 0:01:06]}  Ne6 {[%clk 0:02:21]} 19. Nf3 {[%clk 0:00:55]}  Nf4 {[%clk 0:02:12]} 20. Qd1 {[%clk 0:00:55]}  Nh7 {[%clk 0:02:12]} 21. Bc1 {[%clk 0:00:54]}  g5 {[%clk 0:02:11]} 22. Bxf4 {[%clk 0:00:33]}  gxf4 {[%clk 0:02:07]} 23. h4 {[%clk 0:00:30]}  g6 {[%clk 0:02:07]} 24. g5 {[%clk 0:00:29]}  Kg7 {[%clk 0:02:08]} 25. Nh2 {[%clk 0:00:26]}  f6 {[%clk 0:02:05]} 26. Qg4 {[%clk 0:00:23]}  Qe7 {[%clk 0:01:50]} 27. Nf3 {[%clk 0:00:18]}  fxg5 {[%clk 0:01:41]} 28. Nxg5 {[%clk 0:00:17]}  Nxg5 {[%clk 0:01:40]} 29. Qxg5 {[%clk 0:00:12]}  Qxg5 {[%clk 0:01:40]} 30. hxg5 {[%clk 0:00:13]}  Bc5 {[%clk 0:01:35]} 31. Bf3 {[%clk 0:00:12]}  Rh8 {[%clk 0:01:36]} 32. Kg2 {[%clk 0:00:12]}  Rh4 {[%clk 0:01:34]} 33. Rh1 {[%clk 0:00:11]}  Rah8 {[%clk 0:01:26]} 34. Rcc1 {[%clk 0:00:08]}  Kf7 {[%clk 0:01:25]} 35. Rxh4 {[%clk 0:00:07]}  Rxh4 {[%clk 0:01:26]} 36. Rh1 {[%clk 0:00:06]}  Rxh1 {[%clk 0:01:26]} 37. Kxh1 {[%clk 0:00:07]}  Ke7 {[%clk 0:01:22]} 38. Kg2 {[%clk 0:00:07]}  Kd8 {[%clk 0:01:20]} 39. Bg4 {[%clk 0:00:02]}  Be7 {[%clk 0:01:20]} 40. Be6 {[%clk 0:00:02]}  Bxg5 {[%clk 0:01:20]} 41. Bf7 {[%clk 0:00:02]}  Ke7 {[%clk 0:01:21]} 42. Bxg6 {[%clk 0:00:02]}  Kd6 {[%clk 0:01:21]} 43. Bf5 {[%clk 0:00:01]}  Kc5 {[%clk 0:01:21]} 0-1


[Site "https://www.chess.com"]

[Event "Titled Tuesday Blitz June 6 Late 2023"]
[White "Papayan, Oleg"]
[Black "Marin Masis, Jose Esteban"]
[WhiteFideId "4193911"]
[BlackFideId "6508146"]
[WhiteElo "2167"]
[BlackElo "1838"]
[Result "1-0"]
[Round "2"]
[TimeControl "180+2"]
[Date "2023.06.07"]
[WhiteClock "0:00:21"]
[BlackClock "0:00:05"]
[Board "165"]

1. e4 {[%clk 0:02:56]}  c5 {[%clk 0:02:59]} 2. d4 {[%clk 0:02:56]}  cxd4 {[%clk 0:02:59]} 3. Qxd4 {[%clk 0:02:57]}  Nc6 {[%clk 0:02:58]} 4. Qd3 {[%clk 0:02:58]}  Nf6 {[%clk 0:02:58]} 5. Nc3 {[%clk 0:02:58]}  g6 {[%clk 0:02:57]} 6. Nf3 {[%clk 0:02:59]}  d6 {[%clk 0:02:53]} 7. Be2 {[%clk 0:02:59]}  Bg7 {[%clk 0:02:52]} 8. O-O {[%clk 0:03:00]}  O-O {[%clk 0:02:52]} 9. Nd5 {[%clk 0:03:00]}  Ng4 {[%clk 0:02:37]} 10. c3 {[%clk 0:02:55]}  Nge5 {[%clk 0:02:34]} 11. Nxe5 {[%clk 0:02:52]}  Nxe5 {[%clk 0:02:34]} 12. Qg3 {[%clk 0:02:47]}  Be6 {[%clk 0:02:30]} 13. f4 {[%clk 0:02:37]}  Bxd5 {[%clk 0:02:24]} 14. exd5 {[%clk 0:02:35]}  Nd7 {[%clk 0:02:21]} 15. f5 {[%clk 0:02:29]}  Nf6 {[%clk 0:02:19]} 16. fxg6 {[%clk 0:02:27]}  hxg6 {[%clk 0:02:18]} 17. Bf3 {[%clk 0:02:24]}  Qb6+ {[%clk 0:02:06]} 18. Qf2 {[%clk 0:02:21]}  Qb5 {[%clk 0:01:59]} 19. a4 {[%clk 0:02:02]}  Qa5 {[%clk 0:01:52]} 20. Rd1 {[%clk 0:01:34]}  Nd7 {[%clk 0:01:46]} 21. Bg5 {[%clk 0:01:20]}  Rfe8 {[%clk 0:01:31]} 22. b4 {[%clk 0:01:07]}  Qc7 {[%clk 0:01:26]} 23. Rac1 {[%clk 0:01:08]}  Ne5 {[%clk 0:01:19]} 24. Be2 {[%clk 0:01:08]}  Nc4 {[%clk 0:00:39]} 25. Rf1 {[%clk 0:01:09]}  Rf8 {[%clk 0:00:35]} 26. Bxc4 {[%clk 0:01:09]}  Qxc4 {[%clk 0:00:29]} 27. Bxe7 {[%clk 0:01:10]}  Qxd5 {[%clk 0:00:26]} 28. Bxf8 {[%clk 0:01:07]}  Kxf8 {[%clk 0:00:20]} 29. Qf3 {[%clk 0:00:59]}  Qxf3 {[%clk 0:00:11]} 30. Rxf3 {[%clk 0:00:59]}  Rc8 {[%clk 0:00:12]} 31. Rd3 {[%clk 0:00:55]}  Ke7 {[%clk 0:00:10]} 32. c4 {[%clk 0:00:55]}  b6 {[%clk 0:00:09]} 33. Kf2 {[%clk 0:00:53]}  a5 {[%clk 0:00:08]} 34. bxa5 {[%clk 0:00:47]}  bxa5 {[%clk 0:00:09]} 35. Rd5 {[%clk 0:00:48]}  Rc5 {[%clk 0:00:09]} 36. Rxc5 {[%clk 0:00:45]}  dxc5 {[%clk 0:00:10]} 37. Kf3 {[%clk 0:00:45]}  Bd4 {[%clk 0:00:10]} 38. Ke4 {[%clk 0:00:43]}  Ke6 {[%clk 0:00:09]} 39. Rb1 {[%clk 0:00:41]}  Bc3 {[%clk 0:00:07]} 40. Rb6+ {[%clk 0:00:40]}  Ke7 {[%clk 0:00:06]} 41. Kd5 {[%clk 0:00:41]}  Bb4 {[%clk 0:00:06]} 42. Rb7+ {[%clk 0:00:40]}  Kf6 {[%clk 0:00:06]} 43. g4 {[%clk 0:00:38]}  Kg7 {[%clk 0:00:06]} 44. g5 {[%clk 0:00:32]}  Kf8 {[%clk 0:00:06]} 45. Kd6 {[%clk 0:00:30]}  Kg7 {[%clk 0:00:06]} 46. Ke7 {[%clk 0:00:27]}  Bd2 {[%clk 0:00:06]} 47. h4 {[%clk 0:00:27]}  Be1 {[%clk 0:00:06]} 48. Rb5 {[%clk 0:00:26]}  Bxh4 {[%clk 0:00:06]} 49. Rxc5 {[%clk 0:00:25]}  Be1 {[%clk 0:00:07]} 50. Rd5 {[%clk 0:00:22]}  Bb4+ {[%clk 0:00:07]} 51. c5 {[%clk 0:00:23]}  Ba3 {[%clk 0:00:06]} 52. Ke8 {[%clk 0:00:23]}  f5 {[%clk 0:00:06]} 53. c6 {[%clk 0:00:22]}  f4 {[%clk 0:00:06]} 54. c7 {[%clk 0:00:22]}  f3 {[%clk 0:00:06]} 55. c8=Q {[%clk 0:00:22]}  f2 {[%clk 0:00:07]} 56. Qd7+ {[%clk 0:00:22]}  Kg8 {[%clk 0:00:06]} 57. Qe6+ {[%clk 0:00:22]}  Kg7 {[%clk 0:00:06]} 58. Rd7+ {[%clk 0:00:22]}  Kh8 {[%clk 0:00:05]} 59. Qf6+ {[%clk 0:00:21]} 1-0


[Site "https://www.chess.com"]

[Event "Titled Tuesday Blitz June 6 Late 2023"]
[White "Djordjevic, Dejan N"]
[Black "Rengifo Blancas, Renzo Jhonathan"]
[WhiteFideId "913316"]
[BlackFideId "3807185"]
[WhiteElo "2261"]
[BlackElo "2085"]
[Result "0-1"]
[Round "2"]
[TimeControl "180+2"]
[Date "2023.06.07"]
[WhiteClock "0:00:01"]
[BlackClock "0:01:10"]
[Board "166"]

1. e4 {[%clk 0:03:00]}  d6 {[%clk 0:03:00]} 2. d4 {[%clk 0:03:00]}  e5 {[%clk 0:03:00]} 3. Nf3 {[%clk 0:02:59]}  exd4 {[%clk 0:03:00]} 4. Nxd4 {[%clk 0:02:59]}  Nf6 {[%clk 0:03:01]} 5. Nc3 {[%clk 0:02:59]}  Be7 {[%clk 0:03:02]} 6. Be2 {[%clk 0:02:58]}  O-O {[%clk 0:03:02]} 7. O-O {[%clk 0:02:58]}  c5 {[%clk 0:03:03]} 8. Nb3 {[%clk 0:02:57]}  Nc6 {[%clk 0:03:04]} 9. Be3 {[%clk 0:02:53]}  Be6 {[%clk 0:03:04]} 10. f4 {[%clk 0:02:52]}  Re8 {[%clk 0:03:03]} 11. h3 {[%clk 0:02:43]}  Bf8 {[%clk 0:03:03]} 12. Qd2 {[%clk 0:02:43]}  Bxb3 {[%clk 0:03:03]} 13. axb3 {[%clk 0:02:42]}  Nxe4 {[%clk 0:03:03]} 14. Nxe4 {[%clk 0:02:42]}  Rxe4 {[%clk 0:03:04]} 15. Bf3 {[%clk 0:02:41]}  Re8 {[%clk 0:03:01]} 16. Bf2 {[%clk 0:02:35]}  Qf6 {[%clk 0:02:55]} 17. c3 {[%clk 0:02:34]}  a6 {[%clk 0:02:53]} 18. Qd3 {[%clk 0:02:30]}  Qxf4 {[%clk 0:02:47]} 19. Bd5 {[%clk 0:01:59]}  Ne5 {[%clk 0:02:44]} 20. Qd1 {[%clk 0:01:47]}  Qg5 {[%clk 0:02:41]} 21. Bxb7 {[%clk 0:01:44]}  Rab8 {[%clk 0:02:38]} 22. Bd5 {[%clk 0:01:44]}  Ng6 {[%clk 0:02:32]} 23. Bxf7+ {[%clk 0:01:30]}  Kh8 {[%clk 0:02:33]} 24. Bxe8 {[%clk 0:01:29]}  Rxe8 {[%clk 0:02:33]} 25. Qf3 {[%clk 0:01:17]}  Be7 {[%clk 0:02:30]} 26. Rxa6 {[%clk 0:01:15]}  Rf8 {[%clk 0:02:30]} 27. Qg4 {[%clk 0:01:12]}  Qd2 {[%clk 0:02:29]} 28. Qe6 {[%clk 0:00:46]}  Bg5 {[%clk 0:02:03]} 29. Qxd6 {[%clk 0:00:37]}  Qe2 {[%clk 0:02:00]} 30. Qe6 {[%clk 0:00:18]}  Qd3 {[%clk 0:01:58]} 31. Rd6 {[%clk 0:00:17]}  Qc2 {[%clk 0:01:56]} 32. Rd5 {[%clk 0:00:05]}  Nf4 {[%clk 0:01:54]} 33. Qd6 {[%clk 0:00:04]}  Ne2+ {[%clk 0:01:21]} 34. Kh1 {[%clk 0:00:03]}  Ng3+ {[%clk 0:01:10]} 35. Qxg3 {[%clk 0:00:02]}  Bf4 {[%clk 0:01:10]} 36. Qg4 {[%clk 0:00:01]}  h5 {[%clk 0:01:10]} 0-1


[Site "https://www.chess.com"]